[Event "24th Bosnjaci Open 2019"]
[Site "Bosnjaci"]
[Date "2019.01.04"]
[Round "3.2"]
[White "Zaja, Ivan"]
[Black "Goric, Esad"]
[Result "1-0"]
[ECO "C13"]
[WhiteElo "2458"]
[BlackElo "2260"]
[Annotator "ChessBase"]
[PlyCount "69"]
[EventDate "2019.01.03"]
[EventType "swiss"]
[EventCountry "CRO"]
[SourceTitle "playchess.com"]
[Source "ChessBase"]
[SourceQuality "1"]
[TimeControl "5400+30"]

1. d4 {[%emt 0:00:30]} Nf6 {[%emt 0:00:30]} 2. Bg5 {[%emt 0:00:00]} e6 {[%emt 0:00:30]} 3. Nc3 {[%emt 0:01:00]} d5 {[%emt 0:01:30]} 4. e4 {[%emt 0:01:30]} dxe4 {[%emt 0:00:30]} 5. Nxe4 {[%emt 0:00:00]} Be7 {[%emt 0:00:30]} 6. Bxf6 {[%emt 0:00:00]} Bxf6 {[%emt 0:00:30]} 7. Nf3 {[%emt 0:01:30]} Bd7 {[%emt 0:00:30]} 8. Bd3 {[%emt 0:04:30]} Bc6 {[%emt 0:00:00]} 9. c3 {[%emt 0:01:30]} Nd7 {[%emt 0:02:00]} 10. Qe2 {[%emt 0:01:30]} Bxe4 {[%emt 0:03:30]} 11. Qxe4 {[%emt 0:06:30]} c6 {[%emt 0:00:00]} 12. O-O {[%emt 0:06:30]} Be7 {[%emt 0:01:00]} 13. Rad1 {[%emt 0:04:30]} Nf6 {[%emt 0:01:30]} 14. Qe2 {[%emt 0:00:30]} Qc7 {[%emt 0:02:30]} 15. Ne5 {[%emt 0:01:30]} O-O {[%emt 0:01:30]} 16. f4 {[%emt 0:02:30]} g6 {[%emt 0:04:30]} 17. Bc4 {[%emt 0:04:30]} c5 {[%emt 0:05:30]} 18. Rfe1 {[%emt 0:08:30]} Kg7 {[%emt 0:08:30]} 19. d5 {[%emt 0:14:30]} b5 {[%emt 0:10:30]} 20. Bxb5 {[%emt 0:01:30]} Nxd5 {[%emt 0:03:30]} 21. Bc6 {[%emt 0:04:30]} Rad8 {[%emt 0:00:30]} 22. Bxd5 {[%emt 0:00:30]} exd5 {[%emt 0:03:30]} 23. Nxg6 {[%emt 0:00:30]} hxg6 {[%emt 0:00:30]} 24. Qxe7 {[%emt 0:00:30]} Qb6 {[%emt 0:00:30]} 25. Qe5+ {[%emt 0:00:30]} f6 {[%emt 0:01:30]} 26. Qe2 {[%emt 0:01:30]} Rf7 {[%emt 0:01:30]} 27. f5 {[%emt 0:06:30]} gxf5 {[%emt 0:02:30]} 28. Qf2 {[%emt 0:00:30]} d4 {[%emt 0:01:30]} 29. Rd3 {[%emt 0:01:30]} dxc3 {[%emt 0:03:30]} 30. Rg3+ {[%emt 0:04:30]} Kf8 {[%emt 0:01:30]} 31. Qf4 {[%emt 0:00:30]} c4+ {[%emt 0:01:30]} 32. Kh1 {[%emt 0:00:30]} Rh7 {[%emt 0:08:30]} 33. Qxc4 {[%emt 0:02:44]} Rg7 {[%emt 0:00:30]} 34. Rxg7 {[%emt 0:06:26]} Kxg7 {[%emt 0:00:30]} 35. Re7+ {[%emt 0:00:03]} 1-0

[Event "24th Bosnjaci Open 2019"]
[Site "Bosnjaci"]
[Date "2019.01.04"]
[Round "3.3"]
[White "Andrijevic, Milan"]
[Black "Fercec, Nenad"]
[Result "1/2-1/2"]
[ECO "B84"]
[WhiteElo "2244"]
[BlackElo "2451"]
[Annotator "ChessBase"]
[PlyCount "75"]
[EventDate "2019.01.03"]
[EventType "swiss"]
[EventCountry "CRO"]
[SourceTitle "playchess.com"]
[Source "ChessBase"]
[SourceQuality "1"]
[TimeControl "5400+30"]

1. e4 {[%emt 0:03:30]} c5 {[%emt 0:00:30]} 2. Nf3 {[%emt 0:00:30]} d6 {[%emt 0:00:30]} 3. d4 {[%emt 0:00:30]} cxd4 {[%emt 0:00:00]} 4. Nxd4 {[%emt 0:00:00]} Nf6 {[%emt 0:00:00]} 5. Nc3 {[%emt 0:00:00]} a6 {[%emt 0:00:30]} 6. Be2 {[%emt 0:00:30]} e6 {[%emt 0:00:00]} 7. O-O {[%emt 0:00:00]} Qc7 {[%emt 0:00:00]} 8. f4 {[%emt 0:01:00]} Nbd7 {[%emt 0:00:00]} 9. a4 {[%emt 0:01:30]} b6 {[%emt 0:01:00]} 10. Bf3 {[%emt 0:01:30]} Bb7 {[%emt 0:00:00]} 11. Kh1 {[%emt 0:05:30]} Rb8 {[%emt 0:06:00]} 12. f5 {[%emt 0:09:30]} e5 {[%emt 0:00:30]} 13. Nb3 {[%emt 0:01:30]} Be7 {[%emt 0:00:30]} 14. Be3 {[%emt 0:03:30]} Rc8 {[%emt 0:04:30]} 15. Qd3 {[%emt 0:02:30]} O-O {[%emt 0:13:30]} 16. g4 {[%emt 0:01:30]} d5 {[%emt 0:00:30]} 17. exd5 {[%emt 0:11:30]} e4 {[%emt 0:01:30]} 18. Nxe4 {[%emt 0:07:30]} Nxd5 {[%emt 0:10:30]} 19. Bd4 {[%emt 0:05:30]} Nb4 {[%emt 0:08:30]} 20. Qe2 {[%emt 0:09:30]} Qxc2 {[%emt 0:00:30]} 21. Ned2 {[%emt 0:04:30]} Bxf3+ {[%emt 0:01:30]} 22. Rxf3 {[%emt 0:05:30]} Bf6 {[%emt 0:01:30]} 23. Rc1 {[%emt 0:01:30]} Qxc1+ {[%emt 0:00:00]} 24. Nxc1 {[%emt 0:00:00]} Rxc1+ {[%emt 0:00:00]} 25. Bg1 {[%emt 0:00:00]} h6 {[%emt 0:04:30]} 26. Rf1 {[%emt 0:02:30]} Rc2 {[%emt 0:00:30]} 27. Qd1 {[%emt 0:02:30]} Nc5 {[%emt 0:01:30]} 28. Bxc5 {[%emt 0:01:42]} bxc5 {[%emt 0:00:30]} 29. Ne4 {[%emt 0:01:09]} Bxb2 {[%emt 0:01:30]} 30. Qd6 {[%emt 0:06:44]} Re8 {[%emt 0:12:30]} 31. Re1 {[%emt 0:03:40]} Be5 {[%emt 0:14:49]} 32. Qd7 {[%emt 0:00:35]} Rf8 {[%emt 0:01:56]} 33. Ng3 {[%emt 0:03:04]} Bd4 {[%emt 0:09:23]} 34. Re8 {[%emt 0:01:20]} Rxe8 {[%emt 0:00:03]} 35. Qxe8+ {[%emt 0:00:05]} Kh7 {[%emt 0:00:01]} 36. Qxf7 {[%emt 0:02:07]} Nd3 {[%emt 0:00:14]} 37. Qg6+ {[%emt 0:03:44]} Kh8 {[%emt 0:00:03]} 38. Qe8+ {[%emt 0:01:20]} 1/2-1/2

[Event "24th Bosnjaci Open 2019"]
[Site "Bosnjaci"]
[Date "2019.01.04"]
[Round "3.5"]
[White "Ljikar, Zoran"]
[Black "Rogulj, Branko"]
[Result "0-1"]
[ECO "B03"]
[WhiteElo "2207"]
[BlackElo "2413"]
[Annotator "NA"]
[PlyCount "84"]
[EventDate "2019.01.03"]
[EventType "swiss"]
[EventCountry "CRO"]
[SourceTitle "playchess.com"]
[Source "ChessBase"]
[SourceQuality "1"]
[TimeControl "5400+30"]

1. e4 {[%emt 0:00:30]} Nf6 {[%emt 0:00:30]} 2. e5 {[%emt 0:00:30]} Nd5 {[%emt 0:00:30]} 3. d4 {[%emt 0:00:30]} d6 {[%emt 0:00:00]} 4. exd6 {[%emt 0:00:00]} exd6 {[%emt 0:00:00]} 5. Nf3 {[%emt 0:01:00]} Be7 {[%emt 0:00:30]} 6. Be2 {[%emt 0:01:30]} O-O {[%emt 0:00:00]} 7. O-O {[%emt 0:00:30]} c5 {[%emt 0:02:00]} 8. c4 {[%emt 0:01:30]} Nf6 {[%emt 0:07:30]} 9. h3 {[%emt 0:01:30]} Bf5 {[%emt 0:02:30]} 10. Nc3 {[%emt 0:01:30]} h6 {[%emt 0:01:30]} 11. Re1 {[%emt 0:04:30]} Nc6 {[%emt 0:01:30]} 12. Bf4 {[%emt 0:04:30]} d5 {[%emt 0:06:30]} 13. Bf1 {[%emt 0:09:30]} Be6 {[%emt 0:07:30]} 14. Nb5 {[%emt 0:06:30]} Rc8 {[%emt 0:00:30]} 15. dxc5 {[%emt 0:00:30]} Bxc5 {[%emt 0:01:30]} 16. Nbd4 {[%emt 0:03:30]} Nxd4 {[%emt 0:05:30]} 17. Nxd4 {[%emt 0:00:30]} Qb6 {[%emt 0:05:30]} 18. Be3 {[%emt 0:00:30]} dxc4 {[%emt 0:00:30]} 19. Nxe6 {[%emt 0:00:30]} fxe6 {[%emt 0:02:30]} 20. Bxc5 {[%emt 0:00:30]} Qxc5 {[%emt 0:02:30]} 21. Rxe6 {[%emt 0:02:30]} b5 {[%emt 0:05:30]} 22. Qc2 {[%emt 0:01:30]} Rc7 {[%emt 0:08:30]} 23. Rae1 {[%emt 0:06:30]} Rcf7 {[%emt 0:06:30]} 24. Kh1 {[%emt 0:21:30]} Nd5 {[%emt 0:01:30]} 25. f3 {[%emt 0:00:30]} Nb4 {[%emt 0:03:30]} 26. Qb1 {[%emt 0:03:30]} Rd7 {[%emt 0:04:30]} 27. R6e5 {[%emt 0:06:30]} Rd5 {[%emt 0:01:30]} 28. R5e3 {[%emt 0:00:30]} Qd4 {[%emt 0:03:30]} 29. Qg6 {[%emt 0:08:42]} Qf6 {[%emt 0:00:30]} 30. Qb1 {[%emt 0:02:08]} Qf5 {[%emt 0:02:06]} 31. Re4 {[%emt 0:00:18]} Nd3 {[%emt 0:01:34]} 32. Bxd3 {[%emt 0:02:20]} cxd3 {[%emt 0:00:09]} 33. Rd1 {[%emt 0:00:43]} d2 {[%emt 0:01:33]} 34. Qc2 {[%emt 0:00:09]} Rc8 {[%emt 0:00:47]} 35. Qb3 {[%emt 0:01:33]} Rc1 {[%emt 0:00:10]} 36. Kh2 {[%emt 0:02:01]} Rxd1 {[%emt 0:01:01]} 37. Qxd1 {[%emt 0:00:01]} Kh7 {[%emt 0:00:25]} 38. Re2 {[%emt 0:01:02]} Qd3 {[%emt 0:00:36]} 39. Rf2 {[%emt 0:01:05]} Rd8 {[%emt 0:00:20]} 40. f4 {[%emt 0:00:45]} Qe3 {[%emt 0:02:13]} 41. Rf3 {[%emt 0:00:19]} Qe1 {[%emt 0:00:14]} 42. Rf1 {[%emt 0:00:33]} Qxf1 {[%emt 0:01:16]} 0-1

[Event "24th Bosnjaci Open 2019"]
[Site "Bosnjaci"]
[Date "2019.01.04"]
[Round "3.6"]
[White "Ivekovic, Bozidar"]
[Black "Jelecevic, Ivo"]
[Result "1-0"]
[ECO "A11"]
[WhiteElo "2398"]
[BlackElo "2112"]
[Annotator "NA"]
[PlyCount "37"]
[EventDate "2019.01.03"]
[EventType "swiss"]
[EventCountry "CRO"]
[SourceTitle "playchess.com"]
[Source "ChessBase"]
[SourceQuality "1"]
[TimeControl "5400+30"]

1. Nf3 {[%emt 0:00:30]} d5 {[%emt 0:00:30]} 2. c4 {[%emt 0:00:30]} c6 {[%emt 0:00:00]} 3. g3 {[%emt 0:00:00]} Nf6 {[%emt 0:00:00]} 4. Bg2 {[%emt 0:00:00]} dxc4 {[%emt 0:02:30]} 5. Na3 {[%emt 0:17:30]} b5 {[%emt 0:02:30]} 6. Ne5 {[%emt 0:04:30]} Qd6 {[%emt 0:02:30]} 7. d4 {[%emt 0:01:30]} Nfd7 {[%emt 0:04:30]} 8. Nxb5 {[%emt 0:06:30]} Qb4+ {[%emt 0:02:30]} 9. Nc3 {[%emt 0:00:00]} Nxe5 {[%emt 0:00:30]} 10. dxe5 {[%emt 0:00:00]} Qc5 {[%emt 0:01:30]} 11. O-O {[%emt 0:04:30]} e6 {[%emt 0:01:30]} 12. Ne4 {[%emt 0:09:30]} Qxe5 {[%emt 0:02:30]} 13. Bf4 {[%emt 0:00:30]} Qa5 {[%emt 0:00:00]} 14. Nd6+ {[%emt 0:00:00]} Bxd6 {[%emt 0:00:00]} 15. Qxd6 {[%emt 0:00:00]} Qd8 {[%emt 0:00:30]} 16. Qa3 {[%emt 0:03:30]} Qb6 {[%emt 0:02:30]} 17. Rfd1 {[%emt 0:04:30]} Nd7 {[%emt 0:04:30]} 18. Qd6 {[%emt 0:02:30]} e5 {[%emt 0:01:30]} 19. Be3 {[%emt 0:01:30]} 1-0

[Event "24th Bosnjaci Open 2019"]
[Site "Bosnjaci"]
[Date "2019.01.04"]
[Round "3.7"]
[White "Boban, Sten"]
[Black "Zufic, Miroslav"]
[Result "0-1"]
[ECO "B70"]
[WhiteElo "2105"]
[BlackElo "2389"]
[Annotator "NA"]
[PlyCount "44"]
[EventDate "2019.01.03"]
[EventType "swiss"]
[EventCountry "CRO"]
[SourceTitle "playchess.com"]
[Source "ChessBase"]
[SourceQuality "1"]
[TimeControl "5400+30"]

1. e4 {[%emt 0:00:30]} c5 {[%emt 0:01:30]} 2. Nf3 {[%emt 0:00:00]} d6 {[%emt 0:00:30]} 3. d4 {[%emt 0:00:00]} cxd4 {[%emt 0:00:00]} 4. Nxd4 {[%emt 0:00:30]} Nf6 {[%emt 0:00:00]} 5. Nc3 {[%emt 0:00:30]} a6 {[%emt 0:00:00]} 6. Be2 {[%emt 0:00:30]} g6 {[%emt 0:00:00]} 7. Be3 {[%emt 0:00:30]} Bg7 {[%emt 0:00:30]} 8. h4 {[%emt 0:01:30]} O-O {[%emt 0:00:30]} 9. Qd2 {[%emt 0:00:30]} Nc6 {[%emt 0:00:30]} 10. Nxc6 {[%emt 0:00:30]} bxc6 {[%emt 0:00:00]} 11. Bh6 {[%emt 0:00:00]} Rb8 {[%emt 0:01:00]} 12. Bxg7 {[%emt 0:01:00]} Kxg7 {[%emt 0:00:00]} 13. O-O {[%emt 0:01:30]} Qa5 {[%emt 0:02:00]} 14. Qe3 {[%emt 0:01:30]} Rxb2 {[%emt 0:09:30]} 15. e5 {[%emt 0:02:30]} Qxe5 {[%emt 0:01:30]} 16. Qxe5 {[%emt 0:00:30]} dxe5 {[%emt 0:00:00]} 17. Bd3 {[%emt 0:00:00]} Bf5 {[%emt 0:00:00]} 18. Bxf5 {[%emt 0:01:00]} gxf5 {[%emt 0:00:30]} 19. Rfc1 {[%emt 0:00:30]} Rd8 {[%emt 0:01:30]} 20. Rab1 {[%emt 0:00:30]} Rdb8 {[%emt 0:00:30]} 21. Rxb2 {[%emt 0:00:00]} Rxb2 {[%emt 0:00:00]} 22. Kf1 {[%emt 0:00:00]} Nd5 {[%emt 0:00:00]} 0-1

[Event "24th Bosnjaci Open 2019"]
[Site "Bosnjaci"]
[Date "2019.01.04"]
[Round "3.8"]
[White "Muratovic, Efim"]
[Black "Tomas, Ante"]
[Result "0-1"]
[ECO "A11"]
[WhiteElo "2389"]
[BlackElo "2102"]
[Annotator "NA"]
[PlyCount "88"]
[EventDate "2019.01.03"]
[EventType "swiss"]
[EventCountry "CRO"]
[SourceTitle "playchess.com"]
[Source "ChessBase"]
[SourceQuality "1"]
[TimeControl "5400+30"]

1. Nf3 {[%emt 0:00:30]} d5 {[%emt 0:00:30]} 2. g3 {[%emt 0:01:30]} Nf6 {[%emt 0:00:30]} 3. Bg2 {[%emt 0:00:00]} c6 {[%emt 0:00:30]} 4. O-O {[%emt 0:00:00]} Bg4 {[%emt 0:00:00]} 5. d3 {[%emt 0:00:30]} Nbd7 {[%emt 0:00:00]} 6. c4 {[%emt 0:04:30]} e6 {[%emt 0:06:30]} 7. Nc3 {[%emt 0:00:30]} Be7 {[%emt 0:05:30]} 8. Bf4 {[%emt 0:01:30]} O-O {[%emt 0:00:30]} 9. h3 {[%emt 0:02:30]} Bh5 {[%emt 0:01:30]} 10. cxd5 {[%emt 0:01:30]} exd5 {[%emt 0:08:30]} 11. a3 {[%emt 0:05:30]} a5 {[%emt 0:00:30]} 12. Rb1 {[%emt 0:03:30]} Nc5 {[%emt 0:10:30]} 13. Nd4 {[%emt 0:07:30]} Ne6 {[%emt 0:07:30]} 14. Nxe6 {[%emt 0:06:30]} fxe6 {[%emt 0:00:00]} 15. b4 {[%emt 0:01:30]} axb4 {[%emt 0:13:00]} 16. axb4 {[%emt 0:00:00]} Bd6 {[%emt 0:00:30]} 17. Bg5 {[%emt 0:09:00]} h6 {[%emt 0:01:30]} 18. Bd2 {[%emt 0:00:30]} b5 {[%emt 0:06:30]} 19. Qb3 {[%emt 0:13:30]} Bf7 {[%emt 0:06:30]} 20. Qc2 {[%emt 0:13:30]} Qb6 {[%emt 0:04:30]} 21. Kh2 {[%emt 0:07:38]} e5 {[%emt 0:03:30]} 22. e3 {[%emt 0:05:55]} Rfe8 {[%emt 0:07:26]} 23. Ne2 {[%emt 0:02:16]} Bh5 {[%emt 0:03:02]} 24. Ng1 {[%emt 0:05:15]} e4 {[%emt 0:00:21]} 25. Bc3 {[%emt 0:01:07]} Be5 {[%emt 0:02:04]} 26. Bxe5 {[%emt 0:00:56]} Rxe5 {[%emt 0:00:01]} 27. dxe4 {[%emt 0:00:42]} Nxe4 {[%emt 0:01:14]} 28. Rbc1 {[%emt 0:00:46]} Re6 {[%emt 0:07:37]} 29. Bxe4 {[%emt 0:02:14]} dxe4 {[%emt 0:01:49]} 30. g4 {[%emt 0:00:38]} Bf7 {[%emt 0:00:48]} 31. Ne2 {[%emt 0:00:47]} Rf6 {[%emt 0:01:38]} 32. Nc3 {[%emt 0:02:04]} Qb8+ {[%emt 0:00:49]} 33. Kg1 {[%emt 0:00:17]} Bc4 {[%emt 0:00:36]} 34. Nxe4 {[%emt 0:00:42]} Rf3 {[%emt 0:00:24]} 35. Kg2 {[%emt 0:01:10]} Qf8 {[%emt 0:00:18]} 36. Nd2 {[%emt 0:00:30]} Ra2 {[%emt 0:00:46]} 37. Qc3 {[%emt 0:00:39]} Bd5 {[%emt 0:00:34]} 38. Kg1 {[%emt 0:00:36]} Rxh3 {[%emt 0:00:15]} 39. f3 {[%emt 0:00:25]} Qb8 {[%emt 0:00:17]} 40. Rf2 {[%emt 0:00:45]} Qg3+ {[%emt 0:00:44]} 41. Rg2 {[%emt 0:00:33]} Qh4 {[%emt 0:00:01]} 42. Kf1 {[%emt 0:00:29]} Rh1+ {[%emt 0:00:38]} 43. Rg1 {[%emt 0:00:23]} Qh3+ {[%emt 0:00:41]} 44. Kf2 {[%emt 0:00:18]} Qxf3+ {[%emt 0:00:13]} 0-1

[Event "24th Bosnjaci Open 2019"]
[Site "Bosnjaci"]
[Date "2019.01.04"]
[Round "3.9"]
[White "Ascic, Anto"]
[Black "Beletic, Daniel"]
[Result "0-1"]
[ECO "A49"]
[WhiteElo "2093"]
[BlackElo "2371"]
[Annotator "NA"]
[PlyCount "68"]
[EventDate "2019.01.03"]
[EventType "swiss"]
[EventCountry "CRO"]
[SourceTitle "playchess.com"]
[Source "ChessBase"]
[SourceQuality "1"]
[TimeControl "5400+30"]

1. d4 {[%emt 0:00:30]} d6 {[%emt 0:00:30]} 2. Nf3 {[%emt 0:00:00]} g6 {[%emt 0:00:30]} 3. b3 {[%emt 0:02:00]} Bg7 {[%emt 0:01:30]} 4. Bb2 {[%emt 0:00:30]} Nf6 {[%emt 0:10:30]} 5. g3 {[%emt 0:01:30]} O-O {[%emt 0:00:30]} 6. Bg2 {[%emt 0:00:30]} c6 {[%emt 0:02:30]} 7. O-O {[%emt 0:00:30]} Qa5 {[%emt 0:00:30]} 8. Qd2 {[%emt 0:05:30]} Qh5 {[%emt 0:05:30]} 9. Qg5 {[%emt 0:00:30]} Qxg5 {[%emt 0:00:30]} 10. Nxg5 {[%emt 0:00:30]} a5 {[%emt 0:02:30]} 11. a4 {[%emt 0:00:00]} Na6 {[%emt 0:01:30]} 12. Nd2 {[%emt 0:01:00]} d5 {[%emt 0:02:30]} 13. Ngf3 {[%emt 0:03:30]} Bf5 {[%emt 0:02:30]} 14. c3 {[%emt 0:30:30]} Rfc8 {[%emt 0:12:30]} 15. Rfc1 {[%emt 0:09:30]} Nd7 {[%emt 0:07:30]} 16. c4 {[%emt 0:04:30]} Nb4 {[%emt 0:14:30]} 17. Bc3 {[%emt 0:06:30]} Bh6 {[%emt 0:19:27]} 18. Ne1 {[%emt 0:07:30]} e5 {[%emt 0:05:39]} 19. dxe5 {[%emt 0:00:30]} d4 {[%emt 0:00:33]} 20. Bxb4 {[%emt 0:00:30]} axb4 {[%emt 0:00:09]} 21. f4 {[%emt 0:03:30]} Nxe5 {[%emt 0:00:31]} 22. Nef3 {[%emt 0:01:30]} Nxf3+ {[%emt 0:00:56]} 23. Nxf3 {[%emt 0:00:30]} Bg7 {[%emt 0:00:00]} 24. Ra2 {[%emt 0:00:30]} Re8 {[%emt 0:00:25]} 25. Nh4 {[%emt 0:02:31]} Bg4 {[%emt 0:00:45]} 26. Kf1 {[%emt 0:03:32]} Re3 {[%emt 0:00:25]} 27. Rb1 {[%emt 0:04:29]} Rae8 {[%emt 0:00:52]} 28. Bf3 {[%emt 0:06:43]} Bh3+ {[%emt 0:03:06]} 29. Bg2 {[%emt 0:01:21]} Bg4 {[%emt 0:00:43]} 30. Bf3 {[%emt 0:00:07]} Bxf3 {[%emt 0:00:30]} 31. Nxf3 {[%emt 0:00:49]} d3 {[%emt 0:00:09]} 32. Ne5 {[%emt 0:00:07]} dxe2+ {[%emt 0:00:59]} 33. Rxe2 {[%emt 0:00:49]} Rxe2 {[%emt 0:00:11]} 34. Kxe2 {[%emt 0:00:01]} f6 {[%emt 0:00:02]} 0-1

[Event "24th Bosnjaci Open 2019"]
[Site "Bosnjaci"]
[Date "2019.01.04"]
[Round "3.10"]
[White "Klasan, Vladimir"]
[Black "Egerc, Josip"]
[Result "1-0"]
[ECO "C11"]
[WhiteElo "2364"]
[BlackElo "2081"]
[Annotator "ChessBase"]
[PlyCount "109"]
[EventDate "2019.01.03"]
[EventType "swiss"]
[EventCountry "CRO"]
[SourceTitle "playchess.com"]
[Source "ChessBase"]
[SourceQuality "1"]
[TimeControl "5400+30"]

1. e4 {[%emt 0:00:30]} e6 {[%emt 0:01:30]} 2. d4 {[%emt 0:00:00]} d5 {[%emt 0:00:30]} 3. Nc3 {[%emt 0:00:00]} Nf6 {[%emt 0:01:30]} 4. e5 {[%emt 0:00:30]} Nfd7 {[%emt 0:00:30]} 5. f4 {[%emt 0:00:30]} c5 {[%emt 0:00:30]} 6. Nf3 {[%emt 0:00:00]} Nc6 {[%emt 0:00:00]} 7. Be3 {[%emt 0:00:00]} Qb6 {[%emt 0:04:00]} 8. Na4 {[%emt 0:01:30]} Qa5+ {[%emt 0:00:30]} 9. c3 {[%emt 0:00:30]} c4 {[%emt 0:00:30]} 10. b4 {[%emt 0:04:30]} Nxb4 {[%emt 0:12:30]} 11. cxb4 {[%emt 0:03:30]} Bxb4+ {[%emt 0:03:30]} 12. Kf2 {[%emt 0:00:30]} b5 {[%emt 0:00:30]} 13. Nc5 {[%emt 0:04:30]} Nxc5 {[%emt 0:20:30]} 14. dxc5 {[%emt 0:00:30]} Bd7 {[%emt 0:00:30]} 15. h4 {[%emt 0:19:30]} Qc7 {[%emt 0:03:30]} 16. h5 {[%emt 0:06:30]} Bxc5 {[%emt 0:03:30]} 17. h6 {[%emt 0:01:30]} g6 {[%emt 0:01:30]} 18. Bxc5 {[%emt 0:04:30]} Qxc5+ {[%emt 0:03:30]} 19. Qd4 {[%emt 0:00:30]} Qa3 {[%emt 0:00:30]} 20. Be2 {[%emt 0:04:30]} O-O {[%emt 0:01:30]} 21. Nh2 {[%emt 0:01:30]} Qe7 {[%emt 0:02:30]} 22. Ng4 {[%emt 0:01:30]} Bc6 {[%emt 0:00:30]} 23. Nf6+ {[%emt 0:02:30]} Kh8 {[%emt 0:00:30]} 24. a3 {[%emt 0:07:30]} Rfb8 {[%emt 0:00:30]} 25. Rhb1 {[%emt 0:06:30]} a5 {[%emt 0:01:30]} 26. Kg3 {[%emt 0:05:30]} Qa7 {[%emt 0:05:30]} 27. Qxa7 {[%emt 0:01:30]} Rxa7 {[%emt 0:00:30]} 28. Kf2 {[%emt 0:00:30]} Rd8 {[%emt 0:04:30]} 29. Bf3 {[%emt 0:07:40]} Ra6 {[%emt 0:01:30]} 30. Rb2 {[%emt 0:02:56]} Rb6 {[%emt 0:05:30]} 31. Rd2 {[%emt 0:03:12]} b4 {[%emt 0:02:05]} 32. axb4 {[%emt 0:00:08]} axb4 {[%emt 0:00:08]} 33. Rc1 {[%emt 0:06:01]} c3 {[%emt 0:01:38]} 34. Rd4 {[%emt 0:01:20]} Ra8 {[%emt 0:02:09]} 35. Bd1 {[%emt 0:01:08]} Ra2+ {[%emt 0:02:44]} 36. Ke3 {[%emt 0:00:34]} Rxg2 {[%emt 0:06:06]} 37. Rb1 {[%emt 0:00:05]} Rb2 {[%emt 0:02:07]} 38. Rxb2 {[%emt 0:00:30]} cxb2 {[%emt 0:00:01]} 39. Bc2 {[%emt 0:00:17]} Ba4 {[%emt 0:00:20]} 40. Bb1 {[%emt 0:02:35]} Bb3 {[%emt 0:00:14]} 41. Ne4 {[%emt 0:01:20]} Bc4 {[%emt 0:01:11]} 42. Nd6 {[%emt 0:00:20]} Bf1 {[%emt 0:01:46]} 43. Rd2 {[%emt 0:01:00]} Kg8 {[%emt 0:00:40]} 44. Rc2 {[%emt 0:00:30]} Bc4 {[%emt 0:02:42]} 45. Nxc4 {[%emt 0:01:11]} dxc4 {[%emt 0:00:01]} 46. Rxc4 {[%emt 0:00:10]} Rb8 {[%emt 0:00:00]} 47. Rc2 {[%emt 0:00:06]} Kf8 {[%emt 0:00:02]} 48. Rxb2 {[%emt 0:00:11]} Ke7 {[%emt 0:00:02]} 49. Ra2 {[%emt 0:00:51]} Rb7 {[%emt 0:01:08]} 50. Be4 {[%emt 0:00:21]} Rc7 {[%emt 0:00:05]} 51. Rb2 {[%emt 0:00:28]} Rc3+ {[%emt 0:00:24]} 52. Bd3 {[%emt 0:00:27]} Rc1 {[%emt 0:04:07]} 53. Rb1 {[%emt 0:00:35]} Rxb1 {[%emt 0:00:07]} 54. Bxb1 {[%emt 0:00:01]} f6 {[%emt 0:00:20]} 55. Bxg6 {[%emt 0:00:27]} 1-0

[Event "24th Bosnjaci Open 2019"]
[Site "Bosnjaci"]
[Date "2019.01.04"]
[Round "3.11"]
[White "Dabic, Stjepan"]
[Black "Zovko, Mario"]
[Result "1/2-1/2"]
[ECO "D34"]
[WhiteElo "2077"]
[BlackElo "2318"]
[Annotator "NA"]
[PlyCount "30"]
[EventDate "2019.01.03"]
[EventType "swiss"]
[EventCountry "CRO"]
[SourceTitle "playchess.com"]
[Source "ChessBase"]
[SourceQuality "1"]
[TimeControl "5400+30"]

1. d4 {[%emt 0:00:30]} d5 {[%emt 0:00:30]} 2. c4 {[%emt 0:00:00]} c5 {[%emt 0:01:30]} 3. Nc3 {[%emt 0:01:00]} e6 {[%emt 0:00:30]} 4. cxd5 {[%emt 0:00:30]} exd5 {[%emt 0:00:00]} 5. Nf3 {[%emt 0:00:30]} Nc6 {[%emt 0:00:00]} 6. g3 {[%emt 0:00:00]} Nf6 {[%emt 0:00:30]} 7. Bg2 {[%emt 0:00:00]} Be7 {[%emt 0:00:00]} 8. O-O {[%emt 0:00:30]} O-O {[%emt 0:00:00]} 9. dxc5 {[%emt 0:00:30]} Bxc5 {[%emt 0:00:00]} 10. a3 {[%emt 0:00:00]} Ne4 {[%emt 0:01:00]} 11. Qc2 {[%emt 0:01:00]} Nxc3 {[%emt 0:09:30]} 12. Qxc3 {[%emt 0:00:00]} Bb6 {[%emt 0:01:30]} 13. b4 {[%emt 0:00:00]} Bg4 {[%emt 0:00:00]} 14. Bb2 {[%emt 0:00:30]} d4 {[%emt 0:00:00]} 15. Qd3 {[%emt 0:05:30]} Qf6 {[%emt 0:01:30]} 1/2-1/2

[Event "24th Bosnjaci Open 2019"]
[Site "Bosnjaci"]
[Date "2019.01.04"]
[Round "3.12"]
[White "Muha, Miljenko"]
[Black "Mutapcic, Ilija"]
[Result "1-0"]
[ECO "D00"]
[WhiteElo "2310"]
[BlackElo "1836"]
[Annotator "NA"]
[PlyCount "76"]
[EventDate "2019.01.03"]
[EventType "swiss"]
[EventCountry "CRO"]
[SourceTitle "playchess.com"]
[Source "ChessBase"]
[SourceQuality "1"]
[TimeControl "5400+30"]

1. d4 {[%emt 0:00:30]} d5 {[%emt 0:00:30]} 2. Bf4 {[%emt 0:00:30]} Nf6 {[%emt 0:00:00]} 3. e3 {[%emt 0:00:00]} e6 {[%emt 0:01:00]} 4. Nd2 {[%emt 0:01:00]} Bd6 {[%emt 0:00:30]} 5. Bg3 {[%emt 0:00:30]} O-O {[%emt 0:00:30]} 6. Bd3 {[%emt 0:01:30]} c5 {[%emt 0:00:30]} 7. c3 {[%emt 0:02:30]} cxd4 {[%emt 0:00:30]} 8. exd4 {[%emt 0:00:30]} b6 {[%emt 0:00:30]} 9. Qe2 {[%emt 0:05:30]} a5 {[%emt 0:00:30]} 10. Ngf3 {[%emt 0:00:30]} Ba6 {[%emt 0:00:30]} 11. O-O {[%emt 0:01:30]} Bxd3 {[%emt 0:01:30]} 12. Qxd3 {[%emt 0:00:30]} Nh5 {[%emt 0:01:30]} 13. Bxd6 {[%emt 0:18:30]} Qxd6 {[%emt 0:00:30]} 14. Rfe1 {[%emt 0:01:30]} Nc6 {[%emt 0:01:30]} 15. Nf1 {[%emt 0:09:30]} Rae8 {[%emt 0:01:30]} 16. Ng3 {[%emt 0:07:30]} Nf4 {[%emt 0:01:30]} 17. Qd2 {[%emt 0:04:30]} Ng6 {[%emt 0:02:30]} 18. Rad1 {[%emt 0:04:30]} h6 {[%emt 0:02:30]} 19. Re2 {[%emt 0:02:30]} Nf4 {[%emt 0:02:30]} 20. Re3 {[%emt 0:00:30]} g5 {[%emt 0:01:30]} 21. Rde1 {[%emt 0:05:30]} f5 {[%emt 0:04:30]} 22. Ne5 {[%emt 0:02:30]} Rf6 {[%emt 0:00:30]} 23. Rf3 {[%emt 0:03:30]} Kh7 {[%emt 0:04:30]} 24. Rxf4 {[%emt 0:14:57]} gxf4 {[%emt 0:00:30]} 25. Qxf4 {[%emt 0:00:02]} Rg8 {[%emt 0:02:30]} 26. Nh5 {[%emt 0:02:48]} Rff8 {[%emt 0:00:30]} 27. Re3 {[%emt 0:01:24]} Nxe5 {[%emt 0:03:30]} 28. dxe5 {[%emt 0:01:43]} Qc7 {[%emt 0:01:30]} 29. Qh4 {[%emt 0:00:56]} Rg6 {[%emt 0:04:30]} 30. Nf4 {[%emt 0:02:31]} Rg4 {[%emt 0:02:30]} 31. Nxe6 {[%emt 0:00:04]} Rxh4 {[%emt 0:01:30]} 32. Nxc7 {[%emt 0:00:02]} d4 {[%emt 0:01:30]} 33. cxd4 {[%emt 0:00:19]} Rxd4 {[%emt 0:00:30]} 34. g3 {[%emt 0:00:51]} Rc8 {[%emt 0:01:30]} 35. e6 {[%emt 0:02:07]} f4 {[%emt 0:10:30]} 36. gxf4 {[%emt 0:00:58]} Rxc7 {[%emt 0:02:30]} 37. e7 {[%emt 0:00:07]} Rxe7 {[%emt 0:02:30]} 38. Rxe7+ {[%emt 0:00:02]} Kg8 {[%emt 0:00:00]} 1-0